bitfinex/quotes_BTCUSD_20250505
["timestamp","ask_amount","ask_price","bid_price","bid_amount"]
[1746408665014,7.88644176,94594.0,94593.0,19.22364539]
[1746408665281,8.24404944,94594.0,94593.0,19.22364539]
[1746408665498,8.25859029,94594.0,94593.0,19.22364539]
[1746408665672,8.04999253,94594.0,94593.0,19.22364539]
[1746408665906,8.04999253,94594.0,94593.0,18.34191775]
[1746408666116,8.12548268,94594.0,94593.0,18.32819269]
[1746408666321,8.11798011,94594.0,94593.0,18.12689309]
[1746408666492,8.13252096,94594.0,94593.0,18.12689309]
[1746408666697,8.15652096,94594.0,94593.0,17.39598564]
[1746408667141,8.15652096,94594.0,94593.0,15.36186236]
[1746408667442,8.15652096,94594.0,94593.0,12.80515504]
[1746408667815,8.15652096,94594.0,94593.0,12.4518805]
[1746408668027,8.20914603,94594.0,94593.0,11.86969922]
[1746408668204,8.20914603,94594.0,94593.0,11.66365567]
[1746408668205,8.17553353,94594.0,94593.0,11.66365567]
[1746408668402,8.17311842,94594.0,94593.0,11.66365567]
[1746408668608,8.13701884,94594.0,94593.0,11.63052998]
[1746408668819,7.99847799,94594.0,94593.0,11.63052998]
[1746408669036,6.12687453,94594.0,94593.0,11.58784415]
[1746408669214,5.59160753,94594.0,94593.0,11.58684415]
[1746408669615,5.61560753,94594.0,94593.0,10.75915402]
[1746408669819,5.9992036,94594.0,94593.0,10.05615764]
[1746408670028,6.02482867,94594.0,94593.0,9.21679434]
[1746408670224,5.9482036,94594.0,94593.0,8.90900922]
[1746408670477,5.9742036,94594.0,94593.0,7.92287317]
[1746408670649,5.9962036,94594.0,94593.0,7.78541451]
[1746408670853,5.9962036,94594.0,94593.0,7.75221131]
[1746408671195,5.9962036,94594.0,94593.0,7.55091171]
[1746408671552,5.9962036,94594.0,94593.0,7.54826729]
[1746408671758,5.91565682,94594.0,94593.0,7.45638588]
[1746408672081,5.91565682,94594.0,94593.0,7.43722107]
[1746408672310,5.91565682,94594.0,94593.0,6.97824608]
[1746408672515,5.93215425,94594.0,94593.0,6.97824608]
[1746408672917,5.93215425,94594.0,94593.0,6.54096461]
[1746408673117,5.96277932,94594.0,94593.0,6.11539146]
[1746408673321,5.88415425,94594.0,94593.0,5.66751599]
[1746408673562,5.88965682,94594.0,94593.0,4.74279891]
[1746408673829,5.88965682,94594.0,94593.0,4.35342249]
[1746408674050,5.89365682,94594.0,94593.0,3.22577967]
[1746408674255,5.89365682,94594.0,94593.0,2.00910441]
[1746408674256,5.93320764,94594.0,94593.0,2.00910441]
[1746408674459,5.95520764,94594.0,94593.0,1.15537516]
[1746408674874,5.93702648,94594.0,94593.0,1.11926968]
[1746408675088,5.88965682,94594.0,94593.0,1.11926968]
[1746408675291,5.88965682,94594.0,94593.0,0.78309207]
[1746408675493,5.91465682,94594.0,94593.0,0.76649832]
[1746408675665,5.87306075,94594.0,94593.0,0.76649832]
[1746408675875,5.85006075,94594.0,94593.0,0.75635794]
[1746408676085,5.90306075,94594.0,94593.0,0.75635794]
[1746408676238,5.56306075,94594.0,94593.0,0.75635794]
[1746408676643,5.53706075,94594.0,94593.0,0.75635794]
[1746408676919,5.56106075,94594.0,94593.0,0.75635794]
[1746408677337,5.80106075,94594.0,94593.0,0.75635794]
[1746408677545,5.43706075,94594.0,94593.0,0.75635794]
[1746408677746,5.43706075,94594.0,94593.0,0.70417352]
[1746408677869,5.53706075,94594.0,94593.0,0.70417352]
[1746408678069,5.85106075,94594.0,94593.0,0.70417352]
[1746408678496,5.95760753,94594.0,94593.0,0.70417352]
[1746408678721,5.94820439,94594.0,94593.0,0.62888852]
[1746408678979,5.99620439,94594.0,94593.0,0.61229168]
[1746408679316,5.97320439,94594.0,94593.0,0.58056115]
[1746408679526,5.97320439,94594.0,94593.0,0.44724926]
[1746408680005,5.99520439,94594.0,94593.0,0.44724926]
[1746408680570,5.99520439,94594.0,94593.0,0.43263818]
[1746408680993,5.99520439,94594.0,94593.0,0.36241628]
[1746408683378,5.99520439,94594.0,94593.0,0.28713091]
[1746408683588,5.99520439,94594.0,94557.0,0.18922176]
[1746408683589,0.101,94572.0,94571.0,33.51551667]
[1746408683796,7.83897849,94572.0,94571.0,33.36804635]
[1746408684012,7.85858591,94572.0,94571.0,33.24068507]
[1746408684242,8.37518531,94572.0,94571.0,33.24068507]
[1746408684461,8.37518531,94572.0,94571.0,32.90318242]
[1746408684692,8.37518531,94572.0,94571.0,32.63207786]
[1746408684913,8.40708331,94572.0,94571.0,32.3295497]
[1746408685128,8.40708331,94572.0,94571.0,31.90217846]
[1746408685349,8.42712805,94572.0,94571.0,31.90217846]
[1746408685568,8.50069468,94572.0,94571.0,31.41496978]
[1746408685783,8.50069468,94572.0,94571.0,31.14384931]
[1746408685784,8.20825541,94572.0,94571.0,31.14384931]
[1746408685999,7.22565904,94572.0,94571.0,31.03012249]
[1746408686221,7.56565904,94572.0,94571.0,31.07972249]
[1746408686428,7.82265904,94572.0,94571.0,31.07972249]
[1746408686597,3.26667322,94572.0,94571.0,31.12832249]
[1746408686767,8.13225722,94572.0,94571.0,31.12832249]
[1746408686975,7.79225722,94572.0,94571.0,31.12832249]
[1746408687579,7.79225722,94572.0,94571.0,31.0761451]
[1746408687793,8.13225722,94572.0,94571.0,31.0761451]
[1746408688249,8.18025722,94572.0,94571.0,31.0761451]
[1746408688648,8.13225722,94572.0,94571.0,31.0761451]
[1746408688882,8.15125722,94572.0,94571.0,31.0275451]
[1746408689091,8.15125722,94572.0,94571.0,31.01094613]
[1746408689092,8.64965904,94572.0,94571.0,31.01094613]
[1746408689509,8.65125801,94572.0,94571.0,31.01094613]
[1746408689714,8.63225801,94572.0,94571.0,31.01094613]
[1746408689896,8.65125801,94572.0,94571.0,30.96826149]
[1746408690133,8.65125801,94572.0,94571.0,30.46901271]
[1746408690584,8.70345498,94572.0,94571.0,29.88964191]
[1746408691158,8.63225801,94572.0,94571.0,29.50791754]
[1746408691447,8.67025801,94572.0,94571.0,29.50891754]
[1746408691672,8.69217002,94572.0,94571.0,29.44817856]
[1746408691825,8.69217002,94572.0,94571.0,29.41497527]
[1746408692309,9.10597002,94572.0,94571.0,29.33218378]
[1746408692552,9.17831234,94572.0,94571.0,29.33218378]
[1746408692943,9.17831234,94572.0,94571.0,29.25689252]
[1746408693366,9.15731234,94572.0,94571.0,29.25589252]
[1746408693562,9.17831234,94572.0,94571.0,29.25589252]
[1746408694011,9.15731234,94572.0,94571.0,29.17864913]
[1746408694212,9.16231234,94572.0,94571.0,29.17864913]
[1746408694437,9.15931234,94572.0,94571.0,29.17864913]
[1746408694658,9.15931234,94572.0,94571.0,28.39442501]
[1746408694887,9.1984935,94572.0,94571.0,28.31368237]
[1746408695108,9.15758149,94572.0,94571.0,28.2443134]
[1746408695335,9.17201737,94572.0,94571.0,28.00216196]
[1746408695531,9.18911243,94572.0,94571.0,27.87474759]
[1746408695745,9.16911243,94572.0,94571.0,27.87474759]
[1746408695953,9.14811243,94572.0,94571.0,27.84924488]
[1746408696180,9.15451346,94572.0,94571.0,27.84924488]
[1746408696381,9.17351346,94572.0,94571.0,27.82533713]
[1746408696606,9.13773526,94572.0,94571.0,27.76573421]
[1746408696808,9.17759137,94572.0,94571.0,27.51594755]
[1746408696952,9.17759137,94572.0,94571.0,27.48759076]
[1746408697151,9.15359137,94572.0,94571.0,27.48759076]
[1746408697373,9.15459137,94572.0,94571.0,27.48759076]
[1746408697589,9.17959137,94572.0,94571.0,27.41227379]
[1746408697795,8.91334937,94572.0,94571.0,26.60190538]
[1746408698003,6.7966672,94572.0,94571.0,21.26213637]
[1746408698202,4.23022011,94572.0,94571.0,20.85856376]
[1746408698404,4.23320466,94572.0,94571.0,18.64191888]
[1746408698667,4.26162443,94572.0,94571.0,18.64191888]
[1746408698943,4.2888214,94572.0,94571.0,17.28285758]
[1746408699167,4.21887504,94572.0,94571.0,16.27520824]
[1746408699382,5.74585717,94572.0,94571.0,16.27520824]
[1746408699608,5.76375562,94572.0,94571.0,16.22128938]
[1746408699853,5.79075562,94572.0,94571.0,16.22128938]
[1746408700065,5.76375562,94572.0,94571.0,16.20921405]
[1746408700295,5.79075562,94572.0,94571.0,16.19055163]
[1746408700509,5.77504244,94572.0,94571.0,15.86124338]
[1746408700722,5.74904244,94572.0,94571.0,15.73734743]
[1746408700933,5.78514399,94572.0,94571.0,15.15918056]
[1746408701143,5.78032762,94572.0,94571.0,14.95269397]
[1746408701354,5.79451252,94572.0,94571.0,14.89523476]
[1746408701568,5.76751252,94572.0,94571.0,14.81989969]
[1746408701750,5.79451252,94572.0,94571.0,14.81989969]
[1746408701993,5.76751252,94572.0,94571.0,14.81989969]
[1746408702207,5.76751252,94572.0,94571.0,14.79399967]
[1746408702416,5.79451252,94572.0,94571.0,14.79399967]
[1746408702617,5.76751252,94572.0,94571.0,14.71867332]
[1746408702744,5.76751252,94572.0,94571.0,14.70207582]
[1746408702957,5.76751252,94572.0,94571.0,14.68547832]
[1746408703153,5.76751252,94572.0,94571.0,14.64190718]
[1746408703380,5.76751252,94572.0,94571.0,14.35749113]
[1746408703739,5.78412582,94572.0,94571.0,14.24750716]
[1746408703912,5.78412582,94572.0,94571.0,14.14917265]
[1746408704126,5.75712582,94572.0,94571.0,13.86476749]
[1746408704324,5.75712582,94572.0,94571.0,13.68641465]
[1746408704534,5.78412582,94572.0,94571.0,13.65451798]
[1746408704743,4.29398482,94572.0,94571.0,12.06312063]
[1746408704946,4.29398482,94572.0,94571.0,11.63661316]
[1746408705273,9.32098482,94572.0,94571.0,11.56077792]
[1746408705483,9.29398482,94572.0,94571.0,11.48616825]
[1746408705651,9.30679992,94572.0,94571.0,11.44816757]
[1746408705853,9.32577144,94572.0,94571.0,11.20135744]
[1746408706055,9.28207814,94572.0,94571.0,11.17175535]
[1746408706258,9.32452197,94572.0,94571.0,11.15350612]
[1746408706462,9.32452197,94572.0,94571.0,11.03846654]
[1746408706661,9.47987581,94572.0,94571.0,11.03166654]
[1746408707009,5.91691398,94572.0,94571.0,6.98803553]
[1746408707209,5.87221468,94572.0,94571.0,6.94239473]
[1746408707425,4.83343502,94572.0,94571.0,6.48711646]
[1746408707645,4.36244586,94572.0,94571.0,5.78388783]
[1746408707877,4.36244586,94572.0,94571.0,4.19968963]
[1746408707878,4.46244586,94572.0,94571.0,4.19968963]
[1746408708094,0.001,94550.0,94549.0,34.09772227]
[1746408708301,0.001,94550.0,94549.0,33.89317936]
[1746408708302,2.51404083,94550.0,94549.0,33.89317936]
[1746408708505,2.54596075,94550.0,94549.0,29.36733493]
[1746408708718,2.55015914,94550.0,94549.0,28.90166551]
[1746408708948,2.60001682,94550.0,94549.0,27.99600935]
[1746408709150,2.70358987,94550.0,94549.0,22.86561854]
[1746408709327,3.08265445,94550.0,94549.0,22.74617821]
[1746408709531,3.11439362,94550.0,94549.0,17.55278557]
[1746408709748,3.08192737,94550.0,94549.0,17.25668346]
[1746408709953,3.54143198,94550.0,94549.0,16.18453251]
[1746408710189,4.11030392,94550.0,94549.0,15.03639922]
[1746408710412,4.09220077,94550.0,94549.0,14.7056228]
[1746408710618,4.6308326,94550.0,94549.0,11.76085923]
[1746408710830,4.60852827,94550.0,94549.0,11.66075175]
[1746408711038,4.69426595,94550.0,94549.0,10.38786614]
[1746408711270,4.66539873,94550.0,94549.0,8.9220164]
[1746408711474,4.65037185,94550.0,94549.0,8.84741481]
[1746408711716,4.65037185,94550.0,94549.0,7.83836363]
[1746408711938,4.67737185,94550.0,94549.0,7.15834419]
[1746408712140,4.82511886,94550.0,94549.0,6.86386152]
[1746408712362,4.83934698,94550.0,94549.0,6.14683741]
[1746408712576,4.79610603,94550.0,94549.0,2.62850625]
[1746408712790,0.101,94532.0,94531.0,0.0514686]
[1746408713015,0.101,94528.0,94527.0,32.88086217]
[1746408713227,3.76115764,94528.0,94527.0,30.01690079]
[1746408713429,6.06023517,94528.0,94527.0,29.99382022]
[1746408713637,6.07748272,94528.0,94527.0,29.98483998]
[1746408713870,6.07748272,94528.0,94527.0,29.97654091]
[1746408714086,6.09849364,94528.0,94527.0,29.97654091]
[1746408714304,2.86329506,94528.0,94527.0,24.6259418]
[1746408714509,2.86329506,94528.0,94527.0,24.57357621]
[1746408714645,2.87469028,94528.0,94527.0,24.51887545]
[1746408714848,3.28144166,94528.0,94527.0,24.44939743]
[1746408715164,3.89964166,94528.0,94527.0,24.41858362]
[1746408715354,3.35444166,94528.0,94527.0,24.34585392]
[1746408715589,3.39246003,94528.0,94527.0,24.32667299]
[1746408715770,3.58143516,94528.0,94527.0,24.32159095]
[1746408716100,3.48143516,94528.0,94527.0,24.15253231]
[1746408716303,3.79316924,94528.0,94527.0,24.11211139]
[1746408716544,3.92245833,94528.0,94527.0,24.01999169]
[1746408716866,3.93554207,94528.0,94527.0,23.98208042]
[1746408717069,3.9257155,94528.0,94527.0,23.86818746]
[1746408717352,3.93929866,94528.0,94527.0,23.8487987]
[1746408717567,3.93929866,94528.0,94527.0,23.8378987]
[1746408717751,3.93929866,94528.0,94527.0,23.66727542]
[1746408717968,3.93929866,94528.0,94527.0,23.64042519]
[1746408718250,3.81229866,94528.0,94527.0,23.34437566]
[1746408718387,2.14010466,94528.0,94527.0,22.84047315]
[1746408718592,2.13125399,94528.0,94527.0,22.50757478]
[1746408718931,2.18525399,94528.0,94527.0,22.15083599]
[1746408719136,2.67257946,94528.0,94527.0,16.78292105]
[1746408719400,2.67138411,94528.0,94527.0,11.70239056]
[1746408719591,2.70025203,94528.0,94527.0,11.60629475]
[1746408719761,2.70025203,94528.0,94527.0,8.87332885]
[1746408719965,2.67325203,94528.0,94527.0,8.81926322]
[1746408720204,2.67325203,94528.0,94527.0,5.8374556]
[1746408720433,2.67325203,94528.0,94527.0,5.67074422]
[1746408720434,2.70025203,94528.0,94527.0,5.67074422]
[1746408720644,2.70025203,94528.0,94527.0,5.64054422]
[1746408720864,2.64625203,94528.0,94527.0,4.18309951]
[1746408721070,2.64625203,94528.0,94527.0,0.22290757]
[1746408721290,2.67325203,94528.0,94527.0,0.06685047]
[1746408721498,0.101,94505.0,94504.0,32.02241985]
[1746408721702,0.101,94505.0,94504.0,31.95587161]
[1746408721703,6.07499037,94505.0,94504.0,31.95587161]
[1746408721911,5.86561804,94505.0,94504.0,31.58861374]
[1746408722125,5.8898226,94505.0,94504.0,31.57769755]
[1746408722340,5.95857002,94505.0,94504.0,31.55192555]
[1746408722547,3.19828914,94505.0,94504.0,31.41498237]
[1746408722763,5.93344514,94505.0,94504.0,31.37210522]
[1746408722973,6.41792668,94505.0,94504.0,31.19913896]
[1746408723175,6.43344514,94505.0,94504.0,31.13154324]
[1746408723404,5.91149014,94505.0,94504.0,30.52530466]
[1746408723608,3.75324836,94505.0,94504.0,30.40607767]
[1746408723823,4.15324836,94505.0,94504.0,30.37496038]
[1746408724034,4.74028718,94505.0,94504.0,29.12532582]
[1746408724244,4.74028718,94505.0,94504.0,27.67137536]
[1746408724457,4.76728718,94505.0,94504.0,27.3497017]
[1746408724671,4.75228914,94505.0,94504.0,26.88282163]
[1746408724885,5.12963899,94505.0,94504.0,26.65895808]
[1746408725089,5.15663899,94505.0,94504.0,26.57816361]
[1746408725295,5.15663899,94505.0,94504.0,16.83318954]
[1746408725296,5.25353899,94505.0,94504.0,16.83318954]
[1746408725498,10.25353899,94505.0,94504.0,8.60117393]
[1746408725711,5.21154095,94505.0,94504.0,8.12182379]
[1746408725917,5.1942934,94505.0,94504.0,5.5837742]
[1746408726119,5.1942934,94505.0,94504.0,5.55473996]
[1746408726120,5.20467086,94505.0,94504.0,5.55473996]
[1746408726334,10.10467086,94505.0,94504.0,5.08378896]
[1746408726549,8.70776986,94505.0,94504.0,5.0603063]
[1746408726762,8.70776986,94505.0,94504.0,4.88776106]
[1746408726978,9.00739318,94505.0,94504.0,4.81226127]
[1746408727185,5.43192118,94505.0,94504.0,4.8116792]
[1746408727386,4.63934218,94505.0,94504.0,4.80177413]
[1746408727513,4.63574504,94505.0,94504.0,4.80137427]
[1746408727721,4.69321716,94505.0,94504.0,4.78154569]
[1746408727922,4.64109228,94505.0,94504.0,4.66047071]
[1746408728102,4.64109228,94505.0,94504.0,4.50244387]
[1746408728302,4.64109228,94505.0,94504.0,4.49094387]
[1746408728512,4.54109228,94505.0,94504.0,4.49094387]
[1746408728721,4.54109228,94505.0,94504.0,3.49094387]
[1746408728956,4.64109228,94505.0,94504.0,3.43560561]
[1746408729167,4.64109228,94505.0,94504.0,3.41598119]
[1746408729375,4.49248028,94505.0,94504.0,3.39935676]
[1746408729578,4.55756928,94505.0,94504.0,3.37888681]
[1746408729778,4.55756928,94505.0,94504.0,3.37525597]
[1746408729779,4.34569704,94505.0,94504.0,3.37525597]
[1746408729996,4.44569704,94505.0,94504.0,3.29981481]
[1746408730240,4.34879704,94505.0,94504.0,3.30981481]
[1746408730853,5.14560104,94505.0,94504.0,3.30877544]
[1746408731054,4.34879704,94505.0,94504.0,3.27647532]
[1746408731765,4.34879704,94505.0,94504.0,3.26200465]
[1746408732603,4.26825026,94505.0,94504.0,3.26200465]
[1746408732746,5.03165026,94505.0,94504.0,3.13326024]
[1746408732953,4.51938326,94505.0,94504.0,3.13326024]
[1746408733167,4.26825026,94505.0,94504.0,3.13326024]
[1746408733571,4.26825026,94505.0,94504.0,3.10479662]
[1746408733998,4.16825026,94505.0,94504.0,3.10479662]
[1746408734439,4.26825026,94505.0,94504.0,3.10479662]
[1746408734729,4.16825026,94505.0,94504.0,3.10479662]
[1746408734941,4.26825026,94505.0,94504.0,3.02832955]
[1746408735358,4.61949026,94505.0,94504.0,3.02832955]
[1746408735878,4.26825026,94505.0,94504.0,3.00856993]
[1746408736118,4.16825026,94505.0,94504.0,3.00856993]
[1746408736321,4.16825026,94505.0,94504.0,3.05426993]
[1746408736539,4.16825026,94505.0,94504.0,3.04150282]
[1746408736743,4.26825026,94505.0,94504.0,3.04150282]
[1746408737151,4.43287262,94505.0,94504.0,3.0396035]
[1746408737420,4.33287262,94505.0,94504.0,2.92235007]
[1746408737557,4.43287262,94505.0,94504.0,2.92235007]
[1746408738103,4.44863939,94505.0,94504.0,2.92235007]
[1746408738312,4.44863939,94505.0,94504.0,2.83068356]
[1746408738313,4.43287262,94505.0,94504.0,2.83068356]
[1746408738520,4.43287262,94505.0,94504.0,2.81978356]
[1746408738699,4.63703562,94505.0,94504.0,2.78779137]
[1746408738882,4.59452762,94505.0,94504.0,2.76224911]
[1746408739080,4.43287262,94505.0,94504.0,2.73564298]
[1746408739487,4.26825026,94505.0,94504.0,2.66023826]
[1746408740470,4.26825026,94505.0,94504.0,2.61748356]
[1746408740675,4.26825026,94505.0,94504.0,2.60898356]
[1746408741296,4.26825026,94505.0,94504.0,2.59828356]
[1746408741780,4.24879704,94505.0,94504.0,2.52221487]
[1746408741986,4.34779704,94505.0,94504.0,2.52221487]
[1746408742211,4.34879704,94505.0,94504.0,2.56901487]
[1746408742650,4.32918962,94505.0,94504.0,2.56901487]
[1746408742864,4.32918962,94505.0,94504.0,2.48323121]
[1746408743068,4.32918962,94505.0,94504.0,2.43643121]
[1746408743288,4.3486519,94505.0,94504.0,2.43643121]
[1746408743508,4.3486519,94505.0,94504.0,2.40520493]
[1746408743701,4.3486519,94505.0,94504.0,2.40000679]
[1746408743930,4.3486519,94505.0,94504.0,2.31182134]
[1746408744159,4.3486519,94505.0,94504.0,2.25955927]
[1746408744364,4.3486519,94505.0,94504.0,2.24144276]
[1746408744782,4.3486519,94505.0,94504.0,2.23417499]
[1746408744954,4.3486519,94505.0,94504.0,2.2268336]
[1746408745191,4.3486519,94505.0,94504.0,2.19490396]
[1746408745391,4.6998119,94505.0,94504.0,2.10526156]
[1746408745645,4.3486519,94505.0,94504.0,2.09494546]
[1746408745861,4.3486519,94505.0,94504.0,2.08434546]
[1746408746101,4.3486519,94505.0,94504.0,2.05116043]
[1746408746102,4.36527323,94505.0,94504.0,2.05116043]
[1746408746316,4.36527323,94505.0,94504.0,1.99753944]
[1746408746517,4.36527323,94505.0,94504.0,1.74266955]
[1746408747051,4.36527323,94505.0,94504.0,1.65448401]
[1746408747254,4.36527323,94505.0,94504.0,1.62894301]
[1746408747478,4.36527323,94505.0,94504.0,1.62167518]
[1746408748067,4.36527323,94505.0,94504.0,1.61107891]
[1746408748676,4.36527323,94505.0,94504.0,1.60967941]
[1746408748872,4.38190821,94505.0,94504.0,1.60967941]
[1746408749090,4.38190821,94505.0,94504.0,1.51326005]
[1746408749091,4.38191992,94505.0,94504.0,1.51326005]
[1746408749296,4.38192054,94505.0,94504.0,1.51326005]
[1746408749546,4.38192053,94505.0,94504.0,1.51326005]
[1746408749719,4.38192053,94505.0,94504.0,1.51086091]
[1746408750238,4.28192053,94505.0,94504.0,1.51086091]
[1746408750440,4.38192053,94505.0,94504.0,1.51086091]
[1746408750933,4.38192053,94505.0,94504.0,1.43162611]
[1746408751642,4.38192053,94505.0,94504.0,1.42111497]
[1746408751845,2.28532604,94505.0,94504.0,1.42111497]
[1746408752044,2.28532604,94505.0,94504.0,1.46511547]
[1746408752228,2.23532604,94505.0,94504.0,1.51261547]
[1746408752429,2.22189106,94505.0,94504.0,1.51261547]
[1746408752834,2.06189106,94505.0,94504.0,1.51261547]
[1746408753071,2.16189106,94505.0,94504.0,1.51261547]
[1746408753270,2.16189106,94505.0,94504.0,1.51151547]
[1746408753422,2.11189106,94505.0,94504.0,1.49029547]
[1746408753642,2.08639106,94505.0,94504.0,1.41267737]
[1746408753841,2.13639106,94505.0,94504.0,1.31301172]
[1746408754157,2.13639106,94505.0,94504.0,1.25484634]
[1746408754489,2.13639106,94505.0,94504.0,1.25354681]
[1746408755288,2.48751106,94505.0,94504.0,1.22800824]
[1746408755500,2.48751106,94505.0,94504.0,1.17960558]
[1746408756023,2.13639106,94505.0,94504.0,1.12126244]
[1746408756206,2.13639106,94505.0,94504.0,1.10464108]
[1746408756400,2.13639106,94505.0,94504.0,0.82915698]
[1746408756401,2.05822792,94505.0,94504.0,0.82915698]
[1746408756668,2.20602792,94505.0,94504.0,0.58852512]
[1746408756835,2.18413359,94505.0,94504.0,0.46545056]
[1746408757039,2.18413359,94505.0,94504.0,0.42285056]
[1746408757263,2.21122317,94505.0,94504.0,0.42020364]
[1746408757415,2.21122317,94505.0,94504.0,0.35516433]
[1746408757915,0.1223,94501.0,94500.0,0.23907344]
[1746408758159,3.03265183,94501.0,94500.0,0.23642611]
[1746408758311,3.05539601,94501.0,94500.0,0.19382611]
[1746408758756,3.05539601,94501.0,94500.0,0.17650182]
[1746408758926,3.55539601,94501.0,94500.0,0.16590561]
[1746408759131,3.52817867,94501.0,94500.0,0.16590561]
[1746408759477,3.53284613,94501.0,94500.0,0.10061743]
[1746408759686,3.53284613,94501.0,94500.0,0.09160717]
[1746408759914,3.53284613,94501.0,94500.0,0.06546244]
[1746408760065,3.72182126,94501.0,94500.0,0.04191154]
[1746408760249,0.101,94483.0,94482.0,32.94276425]
[1746408760452,3.00870407,94483.0,94482.0,32.92756425]
[1746408760663,3.02817867,94483.0,94482.0,32.92756425]
[1746408760862,3.04480393,94483.0,94482.0,32.92416425]
[1746408761061,3.01771435,94483.0,94482.0,32.92416425]
[1746408761260,3.01771435,94483.0,94482.0,32.89089685]
[1746408761469,3.01817029,94483.0,94482.0,32.87639685]
[1746408761683,3.01817029,94483.0,94482.0,32.86559685]
[1746408761860,3.41817029,94483.0,94482.0,32.79015384]
[1746408762294,3.41817029,94483.0,94482.0,32.77945384]
[1746408762549,3.51817029,94483.0,94482.0,32.82895384]
[1746408762828,3.91817029,94483.0,94482.0,32.82895384]
[1746408763036,4.12659864,94483.0,94482.0,32.82895384]
[1746408763256,4.12659864,94483.0,94482.0,32.68720101]
[1746408763414,4.10712404,94483.0,94482.0,32.68720101]
[1746408763614,4.10712404,94483.0,94482.0,32.61176259]
[1746408764634,4.12666857,94483.0,94482.0,32.59033884]
[1746408765039,4.12666857,94483.0,94482.0,32.54083884]
[1746408765249,4.47786857,94483.0,94482.0,32.52806716]
[1746408765441,4.40503269,94483.0,94482.0,32.43156412]
[1746408765642,4.05817531,94483.0,94482.0,32.40389979]
[1746408765850,4.1539728,94483.0,94482.0,32.38269719]
[1746408766056,4.1352137,94483.0,94482.0,32.35842145]
[1746408766234,4.15952875,94483.0,94482.0,32.27364468]
[1746408766427,4.15952875,94483.0,94482.0,32.24809219]
[1746408766726,4.15952875,94483.0,94482.0,32.22054512]
[1746408766923,9.20952875,94483.0,94482.0,32.21789764]
[1746408767129,9.20952875,94483.0,94482.0,32.09905213]
[1746408767332,4.15952875,94483.0,94482.0,31.70708156]
[1746408767533,4.15952875,94483.0,94482.0,31.63622743]
[1746408767733,9.20952875,94483.0,94482.0,31.62232796]
[1746408767908,9.20952875,94483.0,94482.0,31.08811244]
[1746408768238,9.20952875,94483.0,94482.0,31.07801244]
[1746408768435,9.20952875,94483.0,94482.0,31.00002192]
[1746408768646,9.23171081,94483.0,94482.0,30.85085431]
[1746408768845,9.23171081,94483.0,94482.0,30.80462924]
[1746408769079,9.21420349,94483.0,94482.0,30.43010053]
[1746408769302,9.21420349,94483.0,94482.0,30.32907255]
[1746408769303,9.68893347,94483.0,94482.0,30.32907255]
[1746408769514,9.68668593,94483.0,94482.0,30.26414115]
[1746408769714,9.68668593,94483.0,94482.0,30.24264115]
[1746408769907,9.68668593,94483.0,94482.0,30.21601599]
[1746408770109,9.76723271,94483.0,94482.0,30.20256015]
[1746408770250,9.78386442,94483.0,94482.0,30.09982623]
[1746408771254,9.78386442,94483.0,94482.0,30.09079463]
[1746408771654,9.28386442,94483.0,94482.0,30.09079463]
[1746408772458,9.28386442,94483.0,94482.0,30.06679463]
[1746408772643,9.28386442,94483.0,94482.0,30.00969463]
[1746408773077,9.28386442,94483.0,94482.0,29.98257149]
[1746408773276,9.28386442,94483.0,94482.0,29.97777149]
[1746408773527,9.28386442,94483.0,94482.0,29.90229305]
[1746408773730,9.28386442,94483.0,94482.0,29.87162574]
[1746408774095,9.28386442,94483.0,94482.0,29.86882675]
[1746408774316,9.28386442,94483.0,94482.0,29.81049588]
[1746408774495,9.28386442,94483.0,94482.0,29.78494081]
[1746408774792,9.28386442,94483.0,94482.0,29.75359007]
[1746408775002,9.28386442,94483.0,94482.0,29.69964221]
[1746408775196,9.77570442,94483.0,94482.0,29.62418163]
[1746408775515,9.77570442,94483.0,94482.0,29.57056062]
[1746408775675,9.77570442,94483.0,94482.0,29.54395827]
[1746408776015,9.77570442,94483.0,94482.0,29.53306086]
[1746408776225,9.67570442,94483.0,94482.0,29.50583989]
[1746408776456,5.69193271,94483.0,94482.0,29.50583989]
[1746408777344,5.71277007,94483.0,94482.0,29.43927752]
[1746408777744,5.71277007,94483.0,94482.0,29.39609021]
[1746408777922,5.71277007,94483.0,94482.0,29.38331504]
[1746408778474,5.71277007,94483.0,94482.0,29.34791504]
[1746408778596,4.88227007,94483.0,94482.0,29.31582023]
[1746408778997,4.88227007,94483.0,94482.0,29.27882395]
[1746408779198,4.88227007,94483.0,94482.0,29.26535461]
[1746408779447,4.87805969,94483.0,94482.0,29.19854754]
[1746408779647,4.87805969,94483.0,94482.0,29.12309477]
[1746408779847,4.87805969,94483.0,94482.0,28.9179296]
[1746408780082,4.99005969,94483.0,94482.0,28.51483266]
[1746408780459,4.99402112,94483.0,94482.0,28.079013]
[1746408780667,4.9910136,94483.0,94482.0,28.079013]
[1746408780782,4.90951291,94483.0,94482.0,28.04691843]
[1746408780988,4.90951291,94483.0,94482.0,27.89373647]
[1746408781193,5.40951291,94483.0,94482.0,27.89373647]
[1746408781402,5.40951291,94483.0,94482.0,27.88313647]
[1746408781606,5.40951291,94483.0,94482.0,27.80768211]
[1746408781832,5.40951291,94483.0,94482.0,27.7866803]
[1746408782051,5.40951291,94483.0,94482.0,27.77212781]
[1746408782218,5.29751291,94483.0,94482.0,27.64933379]
[1746408782417,5.27621291,94483.0,94482.0,27.63559394]
[1746408782725,5.27621291,94483.0,94482.0,27.63546087]
[1746408782726,4.77621291,94483.0,94482.0,27.63546087]
[1746408782971,4.13201291,94483.0,94482.0,27.60990431]
[1746408783171,9.18502043,94483.0,94482.0,27.60990431]
[1746408783427,9.18201291,94483.0,94482.0,27.57231352]
[1746408783592,9.79401291,94483.0,94482.0,27.57231352]
[1746408783770,9.79401291,94483.0,94482.0,27.49650127]
[1746408783771,9.76255969,94483.0,94482.0,27.49650127]
[1746408783965,9.76662647,94483.0,94482.0,26.79511528]
[1746408784322,9.83642267,94483.0,94482.0,26.69350198]
[1746408784534,9.83341515,94483.0,94482.0,26.59896627]
[1746408784652,9.83341515,94483.0,94482.0,25.83890657]
[1746408784852,9.83341515,94483.0,94482.0,25.76381847]
[1746408785053,9.83341515,94483.0,94482.0,25.70667442]
[1746408785297,10.32541515,94483.0,94482.0,25.60321556]
[1746408785615,10.32541515,94483.0,94482.0,25.42040002]
[1746408785789,10.37541515,94483.0,94482.0,25.31962494]
[1746408785996,10.37541515,94483.0,94482.0,24.85791221]
[1746408786200,9.88341515,94483.0,94482.0,24.79219249]
[1746408786398,9.99541515,94483.0,94482.0,24.62673401]
[1746408786575,9.99541515,94483.0,94482.0,24.2122171]
[1746408786765,4.84541515,94483.0,94482.0,23.75897777]
[1746408786962,4.9491572,94483.0,94482.0,19.50243822]
[1746408787172,4.9491572,94483.0,94482.0,19.38278849]
[1746408787374,5.0491572,94483.0,94482.0,19.36499145]
[1746408787730,5.04541515,94483.0,94482.0,19.19867018]
[1746408787871,5.04541515,94483.0,94482.0,19.14671126]
[1746408788094,4.98174515,94483.0,94482.0,19.08050045]
[1746408788289,4.98174515,94483.0,94482.0,18.43416119]
[1746408788489,4.9854872,94483.0,94482.0,18.33934749]
[1746408788692,4.97012183,94483.0,94482.0,18.1202886]